bitfinex-derivatives/quotes_ETHF0:USTF0_20250101
["timestamp","ask_amount","ask_price","bid_price","bid_amount"]
[1735737990357,0.30029,3336.6,3336.5,3.50809]
[1735737990554,2.27793785,3336.9,3336.5,3.2078]
[1735737990755,0.30029,3336.7,3336.6,0.30028]
[1735737991859,2.27793785,3336.9,3336.5,3.2078]
[1735737992059,2.57819785,3336.9,3336.8,0.30027]
[1735737992664,0.4215,3337.2,3336.6,40.8]
[1735737992958,0.72174,3337.2,3337.1,0.30024]
[1735737993150,0.4215,3337.2,3337.1,0.30024]
[1735737993354,0.30023,3337.3,3337.2,0.30023]
[1735737993556,0.75692,3337.4,3337.3,0.30022]
[1735737993754,0.30022,3337.4,3337.3,0.30022]
[1735737993961,2.27793785,3337.5,3337.2,0.8878]
[1735737994260,0.30022,3337.3,3337.2,1.18803]
[1735737994962,0.30022,3337.4,3337.3,0.30022]
[1735737995450,0.30022,3337.4,3337.2,0.8878]
[1735737995451,0.3002,3337.6,3337.5,0.3002]
[1735737996459,3.19733785,3337.8,3337.5,0.3002]
[1735737996670,0.3002,3337.6,3337.5,0.3002]
[1735738000066,3.19733785,3337.8,3337.3,0.4295]
[1735738000367,3.19733785,3337.8,3337.1,3.2078]
[1735738000562,0.9194,3337.8,3337.3,0.4481]
[1735738000764,3.2078,3337.9,3337.3,0.4481]
[1735738000966,0.30018,3337.8,3337.7,0.30018]
[1735738001368,0.30018,3337.8,3337.6,0.30019]
[1735738001773,0.30018,3337.8,3337.7,0.4228]
[1735738002265,0.30018,3337.8,3337.7,0.72299]
[1735738002467,0.30018,3337.8,3337.7,0.4228]
[1735738002664,0.30018,3337.8,3337.7,0.72299]
[1735738002970,3.2078,3337.9,3337.7,0.72299]
[1735738003272,3.50797,3337.9,3337.8,0.30018]
[1735738003768,3.2078,3337.9,3337.8,0.30018]
[1735738003970,3.50797,3337.9,3337.8,0.30018]
[1735738004775,0.30016,3338.0,3337.7,0.4228]
[1735738005078,0.30016,3338.1,3337.9,3.50796]
[1735738005476,0.4509,3338.2,3337.9,3.2078]
[1735738005680,0.30016,3338.0,3337.9,3.50796]
[1735738006178,0.4509,3338.2,3337.9,3.2078]
[1735738006371,0.30015,3338.1,3338.0,0.30016]
[1735738007767,0.4394,3338.4,3337.9,3.2078]
[1735738007971,0.30015,3338.1,3338.0,0.30016]
[1735738008577,0.30015,3338.1,3337.9,3.2078]
[1735738008774,0.30016,3338.0,3337.9,3.50796]
[1735738011682,0.30016,3338.0,3337.9,3.2078]
[1735738012087,0.30018,3337.8,3337.7,0.4228]
[1735738012782,0.72378,3337.8,3337.7,0.4228]
[1735738013887,0.72378,3337.8,3337.7,0.72299]
[1735738014579,0.72378,3337.8,3337.7,0.4228]
[1735738014777,0.72378,3337.8,3337.7,0.72299]
[1735738019787,0.72378,3337.8,3337.7,1.17309]
[1735738023291,0.72378,3337.8,3337.7,4.38089]
[1735738024799,0.30018,3337.8,3337.7,4.38089]
[1735738025391,0.30018,3337.8,3337.7,4.68150873]
[1735738026693,0.30018,3337.8,3337.7,1.47370873]
[1735738026894,0.30018,3337.8,3337.7,4.68150873]
[1735738028594,0.30018,3337.8,3337.7,5.14445461]
[1735738028997,0.30018,3337.8,3337.7,1.93665461]
[1735738029294,0.30018,3337.8,3337.7,5.14445461]
[1735738030094,0.30018,3337.8,3337.7,3.67074588]
[1735738030295,1.38058633,3337.8,3337.7,3.2078]
[1735738031604,0.30018,3337.8,3337.7,3.2078]
[1735738031788,1.38058633,3337.8,3337.7,3.2078]
[1735738034202,2.5829005,3337.8,3337.7,3.2078]
[1735738034391,5.0348205,3337.8,3337.2,3.2078]
[1735738034598,2.2827205,3337.3,3336.9,0.421]
[1735738034896,0.30025,3337.0,3336.9,0.72125]
[1735738035790,0.30025,3337.0,3336.9,0.421]
[1735738036002,0.30026,3336.9,3336.8,3.6349]
[1735738036912,0.30026,3336.9,3336.8,0.4271]
[1735738037104,0.30028,3336.7,3336.6,41.53409]
[1735738038001,2.5830005,3336.7,3336.6,41.2338]
[1735738038309,0.30029,3336.5,3336.4,3.2078]
[1735738043207,0.723,3336.6,3336.0,3.6424]
[1735738043504,0.30033,3336.1,3336.0,3.6424]
[1735738043708,0.30033,3336.2,3336.0,3.94273]
[1735738043908,0.30033,3336.1,3336.0,3.94273]
[1735738044511,0.4255,3336.6,3336.0,3.6424]
[1735738044711,2.2827205,3336.5,3336.1,0.4676]
[1735738044907,0.30032,3336.3,3336.1,0.76792]
[1735738045406,2.2827205,3336.5,3336.1,0.4676]
[1735738045603,0.3003,3336.5,3336.4,0.3003]
[1735738045807,0.3003,3336.4,3336.3,0.30031]
[1735738046407,0.3003,3336.5,3336.2,0.30032]
[1735738046711,0.3003,3336.5,3336.4,0.3003]
[1735738047108,0.3003,3336.5,3336.4,3.5081]
[1735738047300,0.30029,3336.5,3336.4,3.2078]
[1735738051012,2.2827205,3337.1,3336.4,3.2078]
[1735738051216,0.4412,3337.3,3336.5,0.4417]
[1735738051413,3.2078,3337.5,3336.5,3.6495]
[1735738051612,0.30025,3337.1,3336.5,0.74199]
[1735738051810,0.30025,3337.0,3336.5,0.74199]
[1735738052307,3.2078,3337.1,3336.6,0.30028]
[1735738052511,0.30024,3337.1,3336.7,0.73607]
[1735738052711,0.30024,3337.1,3336.7,0.4358]
[1735738052923,0.30025,3337.0,3336.7,0.4358]
[1735738053416,0.30025,3337.1,3336.7,0.4358]
[1735738053813,2.2827205,3337.4,3336.7,0.4358]
[1735738054116,0.30021,3337.5,3337.1,0.30024]
[1735738054309,3.2078,3337.6,3337.2,0.433]
[1735738054510,0.30022,3337.4,3337.3,0.4322]
[1735738056008,3.2078,3337.6,3337.3,0.4322]
[1735738056216,0.30021,3337.5,3337.4,0.4483]
[1735738058215,3.2078,3337.6,3337.3,0.4322]
[1735738058416,0.30021,3337.4,3337.3,0.4322]
[1735738058726,0.3002,3337.5,3336.9,0.30025]
[1735738058909,0.30021,3337.5,3337.3,0.8858]
[1735738059111,3.2078,3337.6,3337.3,1.18602]
[1735738059718,3.2078,3337.6,3337.4,0.30021]
[1735738059922,0.4577,3338.1,3337.4,0.30021]
[1735738059923,0.30017,3337.9,3337.4,0.30021]
[1735738060519,0.30017,3337.9,3337.3,41.6858]
[1735738060721,0.30017,3337.9,3337.4,0.30021]
[1735738060924,0.30018,3337.8,3337.4,0.30021]
[1735738061218,0.30019,3337.7,3337.3,41.6858]
[1735738061823,0.30019,3337.7,3337.3,0.8858]
[1735738062019,0.30017,3337.9,3337.4,0.30021]
[1735738062217,0.30017,3337.9,3337.5,0.3002]
[1735738062418,5.9482205,3338.1,3337.6,0.4649]
[1735738062419,3.6655,3338.1,3337.6,0.4649]
[1735738062617,3.6655,3338.1,3337.6,0.7651]
[1735738062618,0.30017,3338.0,3337.6,0.7651]
[1735738063118,0.30017,3337.9,3337.6,0.4649]
[1735738064119,0.30018,3337.8,3337.6,0.4649]
[1735738064724,0.30017,3338.0,3337.7,0.30018]
[1735738065024,0.30017,3337.9,3337.8,0.4319]
[1735738065425,0.4478,3338.4,3337.8,0.73208]
[1735738065726,0.30016,3338.1,3337.9,0.4331]
[1735738065928,0.4478,3338.4,3337.9,0.4331]
[1735738066120,0.30016,3338.0,3337.9,0.4331]
[1735738066325,0.30015,3338.1,3337.9,0.4331]
[1735738066520,0.30012,3338.4,3337.9,0.4331]
[1735738066723,0.30016,3338.1,3337.9,0.4331]
[1735738067526,0.30016,3338.0,3337.9,0.4331]
[1735738070318,0.30016,3338.1,3337.9,0.73327]
[1735738070523,0.30016,3338.0,3337.9,0.4331]
[1735738070823,3.2078,3338.5,3337.9,0.4331]
[1735738071222,0.30013,3338.4,3338.2,0.30014]
[1735738071427,0.30013,3338.4,3338.3,0.4478]
[1735738072222,0.30013,3338.4,3338.3,0.9151]
[1735738072729,0.4418,3338.9,3338.3,0.9151]
[1735738072927,0.4418,3338.9,3338.4,0.74542]
[1735738073131,0.3001,3338.7,3338.4,0.74542]
[1735738073731,0.4418,3338.9,3338.4,0.4453]
[1735738074029,0.30011,3338.6,3338.4,0.4453]
[1735738074229,0.30011,3338.6,3338.4,0.74542]
[1735738074427,0.4418,3338.9,3338.4,0.4453]
[1735738074627,0.30011,3338.5,3338.4,0.4453]
[1735738075223,0.30011,3338.5,3338.3,0.76743]
[1735738075433,3.2078,3339.6,3338.4,2.2827205]
[1735738075628,0.30004,3339.4,3339.0,3.2078]
[1735738075929,0.30003,3339.5,3339.3,3.2078]
[1735738076128,0.30003,3339.4,3339.3,3.2078]
[1735738076326,0.30003,3339.5,3339.1,42.0871]
[1735738076525,0.30005,3339.2,3339.1,41.6514]
[1735738076730,0.30005,3339.2,3339.1,0.427]
[1735738077229,0.75014,3339.2,3338.2,3.2078]
[1735738077530,0.30014,3338.3,3338.2,3.6348]
[1735738077722,0.30014,3338.3,3338.2,0.427]
[1735738078626,0.4566,3338.5,3337.8,3.2078]
[1735738078830,0.30017,3337.9,3337.8,3.6309]
[1735738079224,0.30015,3338.2,3337.8,3.93107]
[1735738079427,0.30015,3338.1,3337.8,3.93107]
[1735738079722,0.30014,3338.2,3337.9,0.30016]
[1735738081036,0.30014,3338.2,3337.8,3.6309]
[1735738081227,0.4566,3338.5,3337.8,3.6309]
[1735738081427,0.4566,3338.5,3337.9,0.30017]
[1735738081428,0.30016,3338.1,3337.9,0.30017]
[1735738082627,0.4616,3338.6,3337.8,3.6309]
[1735738082832,0.30012,3338.5,3338.3,0.30013]
[1735738083020,0.76171,3338.6,3338.4,0.75252]
[1735738083530,0.4616,3338.6,3338.5,0.30011]
[1735738083733,0.4616,3338.6,3338.4,0.4524]
[1735738084233,0.4616,3338.6,3338.5,0.30011]
[1735738084736,0.30006,3339.1,3338.9,0.30007]
[1735738085037,0.30008,3338.9,3338.7,0.30009]
[1735738085329,0.30006,3339.1,3338.8,0.30008]
[1735738085831,0.30007,3339.0,3338.8,0.30008]
[1735738086070,0.4568,3339.2,3338.5,40.8]
[1735738086260,0.30008,3338.9,3338.7,0.3001]
[1735738087140,0.4568,3339.2,3338.5,40.8]
[1735738087342,0.30007,3339.1,3338.9,0.30008]
[1735738087546,0.75685,3339.2,3339.0,0.76557]
[1735738087847,0.4568,3339.2,3339.1,0.30006]
[1735738088146,0.4568,3339.2,3339.0,0.4655]
[1735738088340,0.30006,3339.1,3339.0,0.4655]
[1735738089142,3.2078,3339.3,3339.2,0.30005]
[1735738089342,0.30003,3339.5,3339.1,0.30006]
[1735738089547,0.30003,3339.5,3339.2,0.30005]
[1735738089939,0.30004,3339.4,3339.1,0.30006]
[1735738090239,0.30003,3339.5,3339.2,0.30005]
[1735738090433,0.30004,3339.4,3339.2,0.30005]
[1735738090631,0.30004,3339.4,3339.0,0.4655]
[1735738090934,0.30004,3339.4,3339.3,0.30004]
[1735738091337,3.6445,3339.7,3339.0,0.4655]
[1735738091635,0.30002,3339.6,3339.5,0.30002]
[1735738092138,0.3,3339.8,3339.5,0.30002]
[1735738092329,0.74228,3340.0,3339.7,3.5078]
[1735738092630,0.74229,3340.0,3339.7,3.9329]
[1735738093530,0.74229,3340.0,3339.9,0.29999]
[1735738093531,0.4423,3340.0,3339.9,0.29999]
[1735738094830,3.2078,3340.5,3339.7,3.6329]
[1735738095136,0.29996,3340.2,3340.0,0.29998]
[1735738095542,0.467,3340.3,3340.1,0.4285]
[1735738095836,0.76696,3340.3,3340.1,0.4285]
[1735738096238,0.76695,3340.3,3340.1,0.4285]
[1735738096831,0.76695,3340.3,3340.1,0.72847]
[1735738097035,0.467,3340.3,3340.1,0.72847]
[1735738097228,0.467,3340.3,3340.1,0.4285]
[1735738097541,0.76696,3340.3,3340.1,0.4285]
[1735738097944,0.29996,3340.2,3340.1,0.4285]
[1735738098337,0.76696,3340.3,3340.1,0.4285]
[1735738098536,0.467,3340.3,3340.1,0.4285]
[1735738098734,0.29996,3340.2,3340.1,0.4285]
[1735738099539,0.3,3339.8,3339.7,3.2078]
[1735738101341,0.3,3339.8,3339.3,3.6633]
[1735738101342,0.30003,3339.4,3339.3,3.6633]
[1735738101536,2.2827205,3339.8,3338.9,1.47908]
[1735738101537,3.2078,3339.5,3338.9,1.47908]
[1735738101746,0.30007,3339.1,3338.9,1.6345]
[1735738101937,0.30007,3339.1,3338.9,1.93458]
[1735738103340,0.4601,3339.3,3338.9,1.6345]
[1735738103540,0.30006,3339.2,3339.0,0.30007]
[1735738103740,0.76015,3339.3,3339.0,0.30007]
[1735738103944,0.76015,3339.3,3338.9,0.4555]
[1735738103945,0.4601,3339.3,3338.9,0.4555]
[1735738104144,0.30006,3339.1,3338.9,0.75557]
[1735738104643,0.4601,3339.3,3338.9,0.4555]
[1735738104844,0.30006,3339.2,3339.0,0.30007]
[1735738105543,0.76015,3339.3,3339.1,0.30006]
[1735738105744,0.30005,3339.2,3339.1,0.30006]
[1735738106046,3.2078,3339.5,3338.9,2.7382205]
[1735738106238,3.50783,3339.5,3339.3,0.30004]
[1735738106432,3.2078,3339.5,3338.9,2.7382205]
[1735738106642,3.50783,3339.5,3339.3,0.30004]
[1735738107343,3.50783,3339.5,3338.9,3.4884205]
[1735738107540,3.50783,3339.5,3339.4,0.30003]
[1735738109044,0.4365,3339.7,3339.4,3.2078]
[1735738109245,0.73651,3339.7,3339.5,0.30002]
[1735738109441,0.73651,3339.7,3339.5,0.73272]
[1735738109845,0.30002,3339.6,3339.5,0.73272]
[1735738111040,3.5061,3340.2,3339.5,0.4327]
[1735738111241,3.5061,3340.2,3339.5,0.8699]
[1735738111242,0.4534,3340.0,3339.5,0.8699]
[1735738111442,0.75339,3340.0,3339.9,0.29999]
[1735738111641,3.5064,3340.6,3339.8,3.2078]
[1735738111840,0.29996,3340.2,3340.1,0.29997]
[1735738112136,3.9724,3340.6,3340.2,0.29996]
[1735738112137,0.29996,3340.3,3340.2,0.29996]
[1735738112342,0.29996,3340.3,3340.2,0.4261]
[1735738112544,0.29996,3340.3,3340.2,0.72606]
[1735738112744,0.29996,3340.3,3340.2,0.4261]
[1735738118752,0.29998,3340.0,3339.9,3.2078]
[1735738118947,0.30002,3339.6,3339.5,3.94502]
[1735738119149,0.30002,3339.6,3339.5,3.2078]
[1735738121052,0.30002,3339.6,3339.5,44.0078]
[1735738121256,0.30002,3339.6,3339.5,3.2078]
[1735738121954,0.30002,3339.6,3339.5,3.50783]
[1735738125251,0.4506,3339.9,3339.5,3.2078]
[1735738125556,0.4506,3339.9,3339.6,0.4341]
[1735738125760,0.30001,3339.8,3339.7,0.3]
[1735738126649,0.7506,3339.9,3339.8,0.3]
[1735738127156,3.2078,3340.2,3339.6,0.4341]
[1735738127352,0.29998,3340.1,3340.0,0.29997]
[1735738127657,0.29997,3340.2,3340.1,0.75467]
[1735738128363,0.4218,3340.3,3340.1,0.75467]
[1735738128364,0.4218,3340.3,3340.1,0.4547]
[1735738128566,0.72175,3340.3,3340.2,0.72316]
[1735738128762,0.72175,3340.3,3340.2,0.4232]
[1735738128955,0.4218,3340.3,3340.1,0.29997]
[1735738129165,0.29996,3340.2,3340.1,0.29997]
[1735738129562,0.4218,3340.3,3339.9,3.2078]
[1735738129762,0.29998,3340.0,3339.9,3.50778]
[1735738130971,0.29998,3340.1,3340.0,0.29998]
[1735738134972,0.29998,3340.0,3339.9,3.50779]
[1735738136473,0.29998,3340.0,3339.9,3.2078]
[1735738139981,0.7608,3340.2,3339.7,0.4547]
[1735738140166,0.3,3339.8,3339.7,0.7547]
[1735738140374,0.3,3339.8,3339.7,0.4547]
[1735738142377,0.30002,3339.6,3339.5,3.2078]
[1735738145983,0.30001,3339.7,3339.6,0.30001]
[1735738146477,3.95775,3340.1,3339.5,3.2078]
[1735738146683,0.30002,3339.6,3339.5,3.50782]
[1735738147577,0.30001,3339.7,3339.6,0.30001]
[1735738148676,0.30002,3339.6,3339.5,3.50782]
[1735738148884,0.76612,3339.6,3339.5,3.50782]
[1735738149983,0.4661,3339.6,3339.5,3.50782]
[1735738150179,0.30001,3339.7,3339.5,3.2078]
[1735738150381,0.30001,3339.7,3339.6,0.30002]
[1735738150880,0.4661,3340.0,3339.9,0.29999]
[1735738151082,0.3,3339.8,3339.7,0.7396]
[1735738151384,0.3,3339.8,3339.7,0.73961]
[1735738155594,0.76609,3340.0,3339.9,0.29999]
[1735738159288,0.3,3339.9,3339.8,0.29999]
[1735738159883,0.4661,3340.0,3339.7,0.4396]
[1735738160087,0.76609,3340.0,3339.9,0.29999]
[1735738165190,0.76609,3340.0,3339.9,0.75539]
[1735738168996,0.76609,3340.0,3339.9,0.4554]
[1735738169797,1.84482789,3340.0,3339.9,0.4554]
[1735738170192,0.29999,3339.9,3339.8,3.2078]
[1735738171299,0.29999,3339.9,3339.8,0.3]
[1735738171995,0.3,3339.8,3339.7,1.197]
[1735738174587,0.4661,3340.0,3339.7,0.897]
[1735738174992,0.76608,3340.0,3339.9,0.29999]
[1735738178495,0.4661,3340.0,3339.8,3.2078]
[1735738178699,0.29999,3339.9,3339.8,3.2078]
[1735738179601,0.4661,3340.0,3339.7,1.197]
[1735738179791,0.3,3339.8,3339.7,4.4048]
[1735738180297,0.3,3339.8,3339.7,4.7052124]
[1735738180498,0.3,3339.8,3339.7,5.16830245]
[1735738181503,0.3,3339.8,3339.7,4.86789005]
[1735738181800,0.3,3339.8,3339.7,4.70521845]
[1735738182203,0.3,3339.8,3339.7,3.96561845]
[1735738182508,0.30006,3339.1,3339.0,14.70433794]
[1735738182698,0.30006,3339.1,3339.0,15.00476818]
[1735738182900,0.30006,3339.1,3339.0,15.16749869]
[1735738183101,1.18666,3339.1,3339.0,10.0]
[1735738184429,0.4259,3339.1,3339.0,10.0]
[1735738184619,0.4259,3339.1,3339.0,10.30007]
[1735738185415,0.72596,3339.1,3339.0,10.0]
[1735738188214,0.4259,3339.1,3338.9,0.30008]
[1735738188725,0.30007,3339.0,3338.9,0.30008]
[1735738189621,4.41768,3339.5,3338.8,0.4422]
[1735738189922,0.30006,3339.1,3339.0,0.30007]
[1735738190422,0.30006,3339.1,3339.0,41.10007]
[1735738190616,4.88328,3339.5,3338.8,0.4422]
[1735738190817,0.75009,3339.4,3338.8,0.74228]
[1735738191124,0.30008,3339.0,3338.9,0.30008]
[1735738192026,3.03024294,3339.3,3338.7,3.2078]
[1735738192226,0.30009,3338.8,3338.7,3.6528]
[1735738195724,0.30009,3338.8,3338.7,0.445]
[1735738196626,0.30011,3338.5,3338.4,4.7219454]
[1735738196924,0.30011,3338.5,3338.4,45.9567454]
[1735738199633,2.28011294,3338.5,3337.8,3.2078]
[1735738199826,3.2078,3338.3,3337.9,0.435]
[1735738200023,0.30016,3338.0,3337.9,0.435]
[1735738200327,0.30017,3337.9,3337.8,3.2078]
[1735738200529,0.73367,3337.9,3337.8,3.2078]
[1735738200728,0.30018,3337.8,3337.7,0.4675]
[1735738201126,0.30018,3337.8,3337.3,3.2078]
[1735738201127,0.30021,3337.4,3337.3,3.2078]
[1735738201332,0.30021,3337.5,3337.3,3.2078]
[1735738201630,5.92141294,3337.9,3337.4,40.8]
[1735738201828,2.7521,3338.1,3337.7,5.48791294]
[1735738202132,0.30016,3338.1,3337.8,1.23347]
[1735738202331,3.2078,3338.7,3337.8,41.7333]
[1735738202526,0.30014,3338.3,3338.0,0.30016]
[1735738202928,0.30014,3338.3,3337.8,41.7333]
[1735738203229,3.2078,3338.7,3337.8,41.7333]
[1735738203429,0.30012,3338.5,3338.2,0.30014]
[1735738203626,0.30012,3338.5,3338.3,0.438]
[1735738204527,3.2078,3338.7,3338.3,0.438]
[1735738204829,0.30012,3338.4,3338.3,0.438]
[1735738206229,0.30011,3338.6,3338.3,0.438]
[1735738206434,0.30011,3338.6,3338.4,0.8859]
[1735738207330,0.3001,3338.7,3338.4,1.18602]
[1735738208032,0.30011,3338.6,3338.4,0.8859]
[1735738208436,0.3001,3338.7,3338.4,1.18602]
[1735738209332,0.3001,3338.7,3338.5,0.30011]
[1735738209533,0.3001,3338.7,3338.4,1.18602]
[1735738210436,3.2078,3339.1,3338.4,0.8859]
[1735738210740,0.30008,3338.9,3338.7,0.30009]
[1735738210942,0.30009,3338.8,3338.6,0.3001]
[1735738212041,3.2078,3339.1,3338.6,0.3001]
[1735738212235,0.30009,3338.8,3338.6,0.3001]
[1735738213339,0.30009,3338.8,3338.5,0.30011]
[1735738213541,0.30009,3338.8,3338.6,0.3001]
[1735738213737,0.30007,3339.0,3338.9,0.30008]
[1735738214240,3.2078,3339.1,3338.9,0.30008]
[1735738214441,0.30008,3338.9,3338.7,0.30009]
[1735738214740,3.2078,3339.1,3338.5,1.178]
[1735738214940,0.30008,3338.9,3338.8,0.30008]
[1735738215243,0.30009,3338.8,3338.6,0.3001]
[1735738215442,0.30009,3338.8,3338.7,0.3001]
[1735738216744,0.30009,3338.9,3338.5,1.178]
[1735738216944,0.30009,3338.9,3338.8,0.30008]
[1735738220146,0.4316,3339.2,3338.8,0.30008]
[1735738220147,0.30006,3339.2,3338.8,0.30009]
[1735738220345,0.30005,3339.2,3339.1,3.2078]
[1735738221642,0.30005,3339.2,3339.1,3.50786]
[1735738222643,0.436,3339.5,3339.2,0.30005]
[1735738222945,0.30004,3339.4,3339.3,0.30004]
[1735738223945,0.30002,3339.6,3339.2,0.30005]
[1735738224138,0.30002,3339.6,3339.5,0.30003]
[1735738224339,3.6288,3339.9,3339.1,3.2078]
[1735738224645,3.6288,3339.9,3339.4,0.30003]
[1735738224845,0.30003,3339.5,3339.4,0.30003]
[1735738225442,0.30002,3339.6,3339.5,0.30001]
[1735738227047,0.3,3339.8,3339.7,0.3]
[1735738227248,3.6288,3339.9,3339.2,2.36962]
[1735738227441,3.92879,3339.9,3339.8,0.3]
[1735738230448,3.6288,3339.9,3339.7,0.4245]
[1735738230639,0.3,3339.8,3339.7,0.7245]
[1735738231042,3.6288,3339.9,3339.7,0.4245]
[1735738231348,3.92879,3339.9,3339.8,0.3]
[1735738232840,0.72099,3339.9,3339.8,0.3]
[1735738233855,0.421,3339.9,3339.8,0.3]
[1735738234041,3.664,3340.2,3339.7,0.4245]
[1735738234245,0.29998,3340.1,3340.0,0.29997]
[1735738234549,0.29998,3340.0,3339.9,0.29998]
[1735738235049,3.664,3340.2,3339.8,3.2078]
[1735738235353,3.664,3340.2,3340.0,0.29997]
[1735738235354,0.29998,3340.1,3340.0,0.29997]
[1735738236051,0.29999,3339.9,3339.8,3.2078]
[1735738236843,0.29999,3339.9,3339.6,0.4457]
[1735738236844,0.30001,3339.7,3339.6,0.4457]
[1735738237252,0.3,3339.8,3339.7,0.3]
[1735738238048,0.30001,3339.7,3339.6,0.74571]
[1735738238644,0.30001,3339.7,3339.6,0.4457]
[1735738238850,0.30001,3339.7,3339.6,0.74572]
[1735738240547,0.30001,3339.7,3339.6,3.95352]
[1735738242749,0.30001,3339.8,3339.7,0.3]
[1735738244044,0.29998,3340.1,3340.0,0.29997]
[1735738244248,0.29999,3340.0,3339.9,0.29999]
[1735738246848,0.731,3340.2,3340.1,0.29997]
[1735738246849,0.73326,3340.2,3340.1,0.29997]
[1735738247055,0.4333,3340.2,3340.1,0.29997]
[1735738248455,0.29996,3340.2,3340.1,0.29997]
[1735738250350,3.50776,3340.3,3340.2,0.29996]
[1735738250554,0.29997,3340.2,3340.1,0.29996]
[1735738250755,3.50776,3340.3,3340.2,0.29996]
[1735738251852,3.50776,3340.3,3339.9,43.08011294]
[1735738251853,0.29997,3340.2,3340.1,0.29997]
[1735738252454,0.29995,3340.4,3340.3,0.29995]
[1735738252851,0.29992,3340.7,3340.4,0.29994]
[1735738253052,0.29991,3340.8,3340.7,0.29991]
[1735738253258,0.29993,3340.6,3340.5,0.76603]
[1735738253960,0.29992,3340.7,3340.6,0.29992]
[1735738254354,0.29993,3340.6,3340.5,0.4661]
[1735738255961,1.19835,3341.0,3340.6,0.29992]
[1735738255962,0.29992,3340.7,3340.6,0.29992]
[1735738256566,0.4486,3341.0,3340.5,0.4661]
[1735738256755,0.29991,3340.8,3340.7,0.29991]
[1735738257258,0.2999,3340.9,3340.8,0.29991]
[1735738258566,0.4486,3341.0,3340.9,0.2999]
[1735738258856,3.2078,3341.1,3340.5,3.92421294]
[1735738259062,0.29987,3341.3,3341.1,0.29988]
[1735738259264,0.29987,3341.3,3341.2,0.4276]
[1735738259558,3.6666,3341.5,3341.2,0.4276]
[1735738259764,0.75865,3341.5,3341.3,3.50766]
[1735738259964,0.4588,3341.5,3341.3,3.97086]
[1735738260165,0.4588,3341.5,3341.4,0.29985]
[1735738260364,0.75865,3341.5,3341.3,3.97085]
[1735738260870,0.75865,3341.5,3341.4,0.29985]
[1735738261068,0.75865,3341.5,3341.3,3.97086]
[1735738261364,0.29985,3341.4,3341.3,3.97086]
[1735738261765,0.75865,3341.5,3341.3,3.97086]
[1735738262069,0.29985,3341.4,3341.3,3.671]
[1735738263765,0.29985,3341.4,3341.3,3.2078]
[1735738266167,0.4588,3341.5,3341.0,0.73759]
[1735738266168,0.29988,3341.2,3341.0,3.94539]
[1735738266367,0.29988,3341.2,3341.1,0.29988]
[1735738266758,0.29988,3341.2,3341.0,3.94539]
[1735738267162,0.29988,3341.2,3341.1,0.29988]
[1735738267865,0.29988,3341.2,3341.0,3.94539]
[1735738268260,0.29988,3341.1,3341.0,3.94539]
[1735738269965,0.29988,3341.1,3341.0,3.6455]
[1735738270265,0.29988,3341.1,3341.0,3.94539]
[1735738270668,0.29988,3341.1,3341.0,3.6455]
[1735738270868,0.29988,3341.1,3341.0,3.94539]
[1735738271679,0.29988,3341.1,3341.0,3.6455]
[1735738277368,0.29988,3341.1,3341.0,3.2078]
[1735738277775,2.57999294,3341.1,3341.0,3.2078]
[1735738278470,0.29994,3340.5,3340.4,0.4265]
[1735738279290,0.29994,3340.5,3340.4,0.72644]
[1735738279573,0.29993,3340.6,3340.5,0.29993]
[1735738280771,0.29994,3340.5,3340.4,0.4265]
[1735738280979,0.29994,3340.5,3340.4,0.72644]
[1735738281791,0.29994,3340.5,3340.4,0.4265]
[1735738281976,0.29995,3340.3,3340.2,3.2078]
[1735738282481,0.29996,3340.2,3340.1,0.8862]
[1735738282679,0.4634,3340.5,3340.1,0.8862]
[1735738282880,0.29995,3340.4,3340.3,0.29995]
[1735738284476,0.74979,3340.8,3340.2,3.6382]
[1735738284783,0.29995,3340.3,3340.2,3.93816]
[1735738284977,0.74979,3340.8,3340.2,3.93816]
[1735738285180,0.29995,3340.4,3340.3,0.29995]
[1735738286078,0.4634,3340.8,3340.2,3.6382]
[1735738286378,3.2078,3340.9,3340.3,2.74911354]
[1735738286681,0.29992,3340.7,3340.6,0.29992]
[1735738287384,3.2078,3340.9,3340.3,2.28011294]
[1735738287585,0.29993,3340.6,3340.3,3.45711294]
[1735738288384,3.2078,3340.9,3340.3,3.45711294]
[1735738288887,0.29994,3340.5,3340.4,0.29994]
[1735738290287,0.29993,3340.6,3340.5,0.29993]
[1735738290584,3.2078,3340.9,3340.3,3.45711294]
[1735738290785,0.29994,3340.5,3340.4,0.29994]
[1735738294895,3.2078,3340.9,3340.3,3.45711294]
[1735738295094,0.29994,3340.5,3340.4,0.29994]
[1735738295796,3.2078,3340.9,3340.4,0.7689372]
[1735738296003,0.29993,3340.6,3340.5,0.75162]
[1735738296503,0.29993,3340.6,3340.5,1.22061645]
[1735738300202,0.29993,3340.6,3340.5,0.92069645]
[1735738300601,0.29993,3340.6,3340.5,0.4517]
[1735738300797,0.29995,3340.3,3340.2,3.2078]
[1735738301001,0.29995,3340.3,3340.2,3.6318]
[1735738301201,0.29995,3340.3,3340.2,4.10081152]
[1735738302801,0.29995,3340.3,3340.2,4.40077152]
[1735738303403,0.29995,3340.3,3340.2,4.10081152]
[1735738303610,0.29995,3340.3,3340.2,5.15118011]
[1735738304309,0.29995,3340.3,3340.2,5.45126573]
[1735738305312,0.4408,3340.5,3340.2,5.15130573]